[Event "44th Chess Olympiad Open 2022"]
[Site "Chennai"]
[Date "2022.08.03"]
[Round "6.63"]
[White "Peter Majur Manyang"]
[Black "Espirito Santo, Waldyr"]
[Result "1-0"]
[WhiteElo "2095"]
[BlackElo "1922"]
[Annotator "NA RC"]
[PlyCount "189"]
[EventDate "2022.??.??"]
[TimeControl "60"]

1. e4 {[%emt 0:00:04]} e6 {[%emt 0:00:41]} 2. d4 {[%emt 0:00:08]} d5 {[%emt 0:
00:00]} 3. Nd2 {[%emt 0:00:13]} Nf6 {[%emt 0:00:32]} 4. e5 {[%emt 0:00:07]}
Nfd7 {[%emt 0:00:08]} 5. Bd3 {[%emt 0:00:13]} c5 {[%emt 0:00:39]} 6. c3 {
[%emt 0:00:06]} Nc6 {[%emt 0:00:32]} 7. Ndf3 {[%emt 0:00:16]} Be7 {[%emt 0:00:
00]} 8. h4 {[%emt 0:00:17]} cxd4 {[%emt 0:04:30]} 9. cxd4 {[%emt 0:00:03]} Qb6
{[%emt 0:00:54]} 10. Ne2 {[%emt 0:00:11]} h6 {[%emt 0:07:12]} 11. Rh3 {[%emt 0:
00:00]} f5 {[%emt 0:02:36]} 12. Rg3 {[%emt 0:16:40]} g5 {[%emt 0:07:42]} 13.
hxg5 {[%emt 0:06:41]} hxg5 {[%emt 0:00:47]} 14. Kf1 {[%emt 0:00:05]} g4 {
[%emt 0:03:13]} 15. Nfg1 {[%emt 0:00:10]} Bh4 {[%emt 0:04:55]} 16. b4 {[%emt 0:
00:00]} Bxg3 {[%emt 0:02:25]} 17. fxg3 {[%emt 0:00:06]} Rh1 {[%emt 0:07:30]}
18. b5 {[%emt 0:00:35]} Ncxe5 {[%emt 0:08:44]} 19. dxe5 {[%emt 0:04:29]} Nxe5 {
[%emt 0:00:40]} 20. Bb2 {[%emt 0:01:55]} Nxd3 {[%emt 0:11:38]} 21. Qxd3 {
[%emt 0:00:50]} Bd7 {[%emt 0:00:19]} 22. a4 {[%emt 0:00:03]} Rc8 {[%emt 0:00:
00]} 23. Bd4 {[%emt 0:00:22]} Qa5 {[%emt 0:02:11]} 24. Qe3 {[%emt 0:01:25]} Rc4
{[%emt 0:05:03]} 25. Qg5 {[%emt 0:00:25]} Rxd4 {[%emt 0:01:11]} 26. Qg8+ {
[%emt 0:00:17]} Ke7 {[%emt 0:00:08]} 27. Qg7+ {[%emt 0:01:28]} Ke8 {[%emt 0:00:
00]} 28. Qxd4 {[%emt 0:01:49]} Kf7 {[%emt 0:01:15]} 29. Rc1 {[%emt 0:00:27]} a6
{[%emt 0:01:48]} 30. bxa6 {[%emt 0:03:17]} bxa6 {[%emt 0:00:18]} 31. Nc3 {
[%emt 0:00:25]} Qc7 {[%emt 0:01:23]} 32. Kf2 {[%emt 0:00:22]} Qc4 {[%emt 0:00:
00]} 33. Qxc4 {[%emt 0:03:27]} dxc4 {[%emt 0:02:25]} 34. Rb1 {[%emt 0:00:02]}
Kf6 {[%emt 0:04:56]} 35. Rb6 {[%emt 0:00:59]} Bc8 {[%emt 0:03:46]} 36. Nge2 {
[%emt 0:00:12]} Ra1 {[%emt 0:00:31]} 37. Rb4 {[%emt 0:01:30]} a5 {[%emt 0:00:
00]} 38. Rb5 {[%emt 0:00:19]} Ra3 {[%emt 0:01:17]} 39. Rxa5 {[%emt 0:02:27]} e5
{[%emt 0:00:58]} 40. Rc5 {[%emt 0:01:05]} Be6 {[%emt 0:00:30]} 41. Ke3 {
[%emt 0:30:08]} Bf7 {[%emt 0:32:09]} 42. Kd2 {[%emt 0:00:59]} Be6 {[%emt 0:00:
00]} 43. Nc1 {[%emt 0:00:56]} f4 {[%emt 0:03:49]} 44. gxf4 {[%emt 0:00:12]}
exf4 {[%emt 0:00:18]} 45. N1e2 {[%emt 0:00:24]} f3 {[%emt 0:01:14]} 46. gxf3 {
[%emt 0:00:34]} gxf3 {[%emt 0:00:00]} 47. Ne4+ {[%emt 0:00:00]} Ke7 {[%emt 0:
00:00]} 48. N2c3 {[%emt 0:00:00]} Ra1 {[%emt 0:00:00]} 49. Ke3 {[%emt 0:00:00]}
Rf1 {[%emt 0:00:00]} 50. Re5 {[%emt 0:00:00]} Kd7 {[%emt 0:00:00]} 51. Rh5 {
[%emt 0:00:00]} Ke7 {[%emt 0:00:00]} 52. Kf4 {[%emt 0:00:00]} Bf7 {[%emt 0:00:
00]} 53. Rh7 {[%emt 0:00:00]} Kf8 {[%emt 0:00:00]} 54. Kf5 {[%emt 0:00:00]} Rg1
{[%emt 0:00:00]} 55. Rh3 {[%emt 0:00:00]} Rf1 {[%emt 0:00:00]} 56. Kf6 {
[%emt 0:00:00]} Bg8 {[%emt 0:00:00]} 57. Rh8 {[%emt 0:00:00]} Re1 {[%emt 0:00:
00]} 58. Rh5 {[%emt 0:00:00]} Re3 {[%emt 0:01:26]} 59. Rf5 {[%emt 0:00:00]} Bh7
{[%emt 0:00:31]} 60. Rc5 {[%emt 0:00:00]} Ke8 {[%emt 0:01:38]} 61. Nd6+ {
[%emt 0:00:00]} Kd7 {[%emt 0:00:37]} 62. Nxc4 {[%emt 0:01:30]} Re6+ {[%emt 0:
00:00]} 63. Kg7 {[%emt 0:00:00]} Re7+ {[%emt 0:01:15]} 64. Kh6 {[%emt 0:00:00]}
Be4 {[%emt 0:00:38]} 65. Nb6+ {[%emt 0:05:39]} Ke8 {[%emt 0:00:48]} 66. Nd1 {
[%emt 0:19:24]} Kf7 {[%emt 0:01:02]} 67. Nc4 {[%emt 0:00:52]} Kf6 {[%emt 0:00:
00]} 68. Kh5 {[%emt 0:00:30]} Bf5 {[%emt 0:01:01]} 69. Kh4 {[%emt 0:00:22]} Be4
{[%emt 0:01:13]} 70. Nf2 {[%emt 0:00:29]} Ba8 {[%emt 0:00:23]} 71. Kg3 {
[%emt 0:00:16]} Rg7+ {[%emt 0:00:34]} 72. Kf4 {[%emt 0:00:22]} Rg2 {[%emt 0:00:
00]} 73. Ke3 {[%emt 0:00:10]} Rg1 {[%emt 0:00:19]} 74. Nb6 {[%emt 0:00:13]}
Re1+ {[%emt 0:00:21]} 75. Kf4 {[%emt 0:00:10]} Bb7 {[%emt 0:00:44]} 76. Nd5+ {
[%emt 0:00:20]} Ke6 {[%emt 0:00:48]} 77. Ne3 {[%emt 0:00:13]} Ra1 {[%emt 0:00:
00]} 78. a5 {[%emt 0:00:04]} Ra4+ {[%emt 0:00:20]} 79. Kg3 {[%emt 0:00:03]} Kd6
{[%emt 0:00:48]} 80. Rh5 {[%emt 0:00:04]} Kc7 {[%emt 0:00:24]} 81. Nfd1 {
[%emt 0:01:11]} Kb8 {[%emt 0:00:18]} 82. Nc3 {[%emt 0:00:09]} Ra3 {[%emt 0:00:
00]} 83. Rc5 {[%emt 0:01:16]} Ra1 {[%emt 0:00:16]} 84. Ned5 {[%emt 0:00:07]}
Rc1 {[%emt 0:00:30]} 85. Nb4 {[%emt 0:01:54]} Rg1+ {[%emt 0:00:20]} 86. Kf2 {
[%emt 0:00:01]} Rg2+ {[%emt 0:00:21]} 87. Kf1 {[%emt 0:00:02]} Rb2 {[%emt 0:00:
00]} 88. Rb5 {[%emt 0:02:14]} Ka8 {[%emt 0:00:28]} 89. Rb6 {[%emt 0:00:14]} Bc8
{[%emt 0:00:31]} 90. Nd1 {[%emt 0:01:08]} Bh3+ {[%emt 0:00:19]} 91. Kg1 {
[%emt 0:00:01]} Rb1 {[%emt 0:01:40]} 92. Kh2 {[%emt 0:00:16]} Rxd1 {[%emt 0:00:
00]} 93. Nc6 {[%emt 0:00:10]} Rd8 {[%emt 0:00:41]} 94. Nxd8 {[%emt 0:00:06]} f2
{[%emt 0:00:06]} 95. Nc6 {[%emt 0:00:21]} 1-0

[Event "44th Chess Olympiad Open 2022"]
[Site "Chennai"]
[Date "2022.08.03"]
[Round "6.63"]
[White "Ajak Mach Duany"]
[Black "Pereira, Sergio Murilo de Ar"]
[Result "1-0"]
[WhiteElo "2029"]
[BlackElo "2093"]
[Annotator "NA RC"]
[PlyCount "117"]
[EventDate "2022.??.??"]
[TimeControl "60"]

1. e4 {[%emt 0:00:06]} c5 {[%emt 0:00:08]} 2. Nc3 {[%emt 0:00:13]} e6 {[%emt 0:
00:00]} 3. f4 {[%emt 0:00:33]} d5 {[%emt 0:00:36]} 4. e5 {[%emt 0:01:32]} Nc6 {
[%emt 0:00:55]} 5. Nf3 {[%emt 0:00:14]} Bd7 {[%emt 0:00:53]} 6. Bb5 {[%emt 0:
00:00]} d4 {[%emt 0:00:15]} 7. Ne4 {[%emt 0:02:26]} Nxe5 {[%emt 0:01:27]} 8.
fxe5 {[%emt 0:00:33]} Bxb5 {[%emt 0:00:13]} 9. d3 {[%emt 0:00:12]} Bc6 {
[%emt 0:01:55]} 10. Nfg5 {[%emt 0:04:52]} Bxe4 {[%emt 0:16:36]} 11. Nxe4 {
[%emt 0:01:22]} Qc7 {[%emt 0:02:21]} 12. Bf4 {[%emt 0:01:23]} O-O-O {[%emt 0:
00:00]} 13. O-O {[%emt 0:01:19]} Qd7 {[%emt 0:01:41]} 14. Bg5 {[%emt 0:03:58]}
Re8 {[%emt 0:06:27]} 15. Qf3 {[%emt 0:00:52]} h6 {[%emt 0:00:58]} 16. Bd2 {
[%emt 0:01:27]} f5 {[%emt 0:12:13]} 17. exf6 {[%emt 0:00:11]} Nxf6 {[%emt 0:00:
00]} 18. Nxf6 {[%emt 0:00:53]} gxf6 {[%emt 0:00:04]} 19. Qxf6 {[%emt 0:00:19]}
Rh7 {[%emt 0:14:31]} 20. Bf4 {[%emt 0:08:48]} e5 {[%emt 0:03:40]} 21. Bg3 {
[%emt 0:02:37]} Bd6 {[%emt 0:04:48]} 22. Rae1 {[%emt 0:03:19]} Re6 {[%emt 0:00:
00]} 23. Qf5 {[%emt 0:02:19]} Rhe7 {[%emt 0:00:24]} 24. Qe4 {[%emt 0:01:44]}
Qc6 {[%emt 0:02:37]} 25. Qxc6+ {[%emt 0:02:18]} bxc6 {[%emt 0:00:01]} 26. b3 {
[%emt 0:00:20]} Kc7 {[%emt 0:00:16]} 27. Re4 {[%emt 0:00:39]} Kb6 {[%emt 0:00:
00]} 28. Bh4 {[%emt 0:00:41]} Rd7 {[%emt 0:01:40]} 29. Rf6 {[%emt 0:01:35]}
Rde7 {[%emt 0:01:29]} 30. Rxe6 {[%emt 0:00:28]} Rxe6 {[%emt 0:00:01]} 31. Be1 {
[%emt 0:03:05]} Kb5 {[%emt 0:02:56]} 32. a4+ {[%emt 0:00:51]} Ka6 {[%emt 0:00:
00]} 33. Bd2 {[%emt 0:00:13]} Bf8 {[%emt 0:03:34]} 34. g4 {[%emt 0:01:32]} Kb6
{[%emt 0:00:33]} 35. Kg2 {[%emt 0:01:47]} Kc7 {[%emt 0:00:31]} 36. h4 {[%emt 0:
00:00]} Kd6 {[%emt 0:00:14]} 37. g5 {[%emt 0:00:53]} hxg5 {[%emt 0:01:24]} 38.
hxg5 {[%emt 0:00:13]} Re7 {[%emt 0:01:37]} 39. Kg3 {[%emt 0:02:04]} Ke6 {
[%emt 0:01:16]} 40. Kg4 {[%emt 0:02:29]} Rh7 {[%emt 0:05:18]} 41. Re2 {[%emt 0:
00:00]} Rh1 {[%emt 0:30:54]} 42. Be1 {[%emt 0:00:32]} Rh7 {[%emt 0:01:20]} 43.
Bg3 {[%emt 0:00:30]} Bg7 {[%emt 0:00:07]} 44. Rh2 {[%emt 0:03:24]} Rxh2 {
[%emt 0:02:18]} 45. Bxh2 {[%emt 0:00:10]} Bf8 {[%emt 0:00:02]} 46. Bg3 {
[%emt 0:00:37]} Bg7 {[%emt 0:00:11]} 47. Bh4 {[%emt 0:00:40]} Bf8 {[%emt 0:00:
00]} 48. g6 {[%emt 0:00:20]} Bg7 {[%emt 0:00:58]} 49. Bg5 {[%emt 0:02:53]} Bh8
{[%emt 0:00:00]} 50. Bh6 {[%emt 0:00:00]} Bf6 {[%emt 0:00:00]} 51. g7 {[%emt 0:
00:00]} Kf7 {[%emt 0:00:00]} 52. Kf5 {[%emt 0:00:00]} Bd8 {[%emt 0:00:00]} 53.
Kxe5 {[%emt 0:00:00]} Bc7+ {[%emt 0:00:00]} 54. Ke4 {[%emt 0:00:00]} a5 {
[%emt 0:00:00]} 55. Kf5 {[%emt 0:00:00]} Bd8 {[%emt 0:00:00]} 56. g8=Q+ {
[%emt 0:00:00]} Kxg8 {[%emt 0:00:00]} 57. Ke6 {[%emt 0:00:00]} Kh7 {[%emt 0:00:
00]} 58. Bf8 {[%emt 0:00:00]} Bb6 {[%emt 0:00:00]} 59. Kd7 {[%emt 0:00:00]} 1-0

[Event "44th Chess Olympiad Open 2022"]
[Site "Chennai"]
[Date "2022.08.03"]
[Round "6.63"]
[White "Lima, Osvaldo Dos Santos"]
[Black "Madol Garang Panthoum"]
[Result "0-1"]
[WhiteElo "1863"]
[BlackElo "1985"]
[Annotator "NA RC"]
[PlyCount "64"]
[EventDate "2022.??.??"]
[TimeControl "60"]

1. c4 {[%emt 0:00:11]} e5 {[%emt 0:00:50]} 2. Nc3 {[%emt 0:00:03]} Nc6 {
[%emt 0:00:38]} 3. g3 {[%emt 0:00:03]} f5 {[%emt 0:01:15]} 4. Bg2 {[%emt 0:00:
00]} Nf6 {[%emt 0:00:29]} 5. e3 {[%emt 0:00:48]} Bb4 {[%emt 0:03:08]} 6. Nge2 {
[%emt 0:00:03]} O-O {[%emt 0:01:36]} 7. a3 {[%emt 0:00:09]} Bxc3 {[%emt 0:00:
00]} 8. Nxc3 {[%emt 0:00:56]} e4 {[%emt 0:01:59]} 9. O-O {[%emt 0:01:26]} Ne5 {
[%emt 0:01:45]} 10. b3 {[%emt 0:01:59]} c6 {[%emt 0:02:57]} 11. f3 {[%emt 0:00:
00]} d5 {[%emt 0:00:27]} 12. d4 {[%emt 0:02:00]} Nd3 {[%emt 0:04:26]} 13. fxe4
{[%emt 0:04:49]} fxe4 {[%emt 0:00:18]} 14. Ne2 {[%emt 0:02:07]} g5 {[%emt 0:00:
00]} 15. Bd2 {[%emt 0:01:13]} Ng4 {[%emt 0:06:51]} 16. Rxf8+ {[%emt 0:00:17]}
Qxf8 {[%emt 0:00:04]} 17. Qf1 {[%emt 0:01:22]} Qh6 {[%emt 0:05:20]} 18. h3 {
[%emt 0:02:14]} Ngf2 {[%emt 0:00:34]} 19. g4 {[%emt 0:12:36]} Bxg4 {[%emt 0:00:
00]} 20. hxg4 {[%emt 0:00:45]} Rf8 {[%emt 0:00:13]} 21. Nf4 {[%emt 0:00:51]}
gxf4 {[%emt 0:00:45]} 22. exf4 {[%emt 0:01:00]} Nxg4 {[%emt 0:01:09]} 23. Bh3 {
[%emt 0:00:07]} Kh8 {[%emt 0:04:33]} 24. Bxg4 {[%emt 0:01:26]} Rg8 {[%emt 0:00:
00]} 25. Qg2 {[%emt 0:02:36]} Qh4 {[%emt 0:00:32]} 26. Rf1 {[%emt 0:03:43]}
Rxg4 {[%emt 0:00:14]} 27. f5 {[%emt 0:03:12]} Rxg2+ {[%emt 0:00:37]} 28. Kxg2 {
[%emt 0:00:02]} Qg4+ {[%emt 0:00:24]} 29. Kh1 {[%emt 0:00:05]} Qe2 {[%emt 0:00:
00]} 30. Kg1 {[%emt 0:00:21]} Qxd2 {[%emt 0:00:05]} 31. f6 {[%emt 0:00:01]}
Qg5+ {[%emt 0:00:35]} 32. Kh2 {[%emt 0:01:01]} Nf4 {[%emt 0:00:28]} 0-1

[Event "44th Chess Olympiad Open 2022"]
[Site "Chennai"]
[Date "2022.08.03"]
[Round "6.63"]
[White "Alegre, Fabio Costa"]
[Black "Gong Thon Gong"]
[Result "1/2-1/2"]
[WhiteElo "1809"]
[BlackElo "2176"]
[Annotator "NA RC"]
[PlyCount "169"]
[EventDate "2022.??.??"]
[TimeControl "60"]

1. c4 {[%emt 0:00:14]} e5 {[%emt 0:00:13]} 2. Nc3 {[%emt 0:00:17]} f5 {[%emt 0:
00:00]} 3. g3 {[%emt 0:02:05]} Nf6 {[%emt 0:00:03]} 4. Bg2 {[%emt 0:00:12]} Bc5
{[%emt 0:00:12]} 5. e3 {[%emt 0:00:36]} Nc6 {[%emt 0:00:07]} 6. Nge2 {[%emt 0:
00:00]} e4 {[%emt 0:00:05]} 7. O-O {[%emt 0:01:41]} Ne5 {[%emt 0:00:12]} 8. d4
{[%emt 0:00:15]} exd3 {[%emt 0:00:22]} 9. Nf4 {[%emt 0:00:06]} Nxc4 {[%emt 0:
00:00]} 10. Nxd3 {[%emt 0:00:19]} Be7 {[%emt 0:00:58]} 11. b3 {[%emt 0:02:01]}
Nb6 {[%emt 0:00:04]} 12. a4 {[%emt 0:01:45]} a5 {[%emt 0:00:09]} 13. h4 {
[%emt 0:03:23]} O-O {[%emt 0:00:08]} 14. Nf4 {[%emt 0:00:49]} c6 {[%emt 0:00:
00]} 15. Bb2 {[%emt 0:00:31]} d5 {[%emt 0:00:04]} 16. Qd4 {[%emt 0:02:36]} Rf7
{[%emt 0:01:39]} 17. Rfd1 {[%emt 0:00:33]} Bd7 {[%emt 0:01:08]} 18. Qd3 {
[%emt 0:02:44]} Ne4 {[%emt 0:00:48]} 19. Nce2 {[%emt 0:00:50]} Bf6 {[%emt 0:00:
00]} 20. Bd4 {[%emt 0:04:21]} Nc8 {[%emt 0:01:44]} 21. Rac1 {[%emt 0:01:04]}
Ne7 {[%emt 0:00:23]} 22. Qb1 {[%emt 0:02:22]} Ng6 {[%emt 0:00:23]} 23. Nd3 {
[%emt 0:00:26]} Qe7 {[%emt 0:00:33]} 24. Qb2 {[%emt 0:01:10]} Nf8 {[%emt 0:00:
00]} 25. Ne5 {[%emt 0:00:15]} Bxe5 {[%emt 0:00:21]} 26. Bxe5 {[%emt 0:00:07]}
Re8 {[%emt 0:01:04]} 27. Bc7 {[%emt 0:00:58]} Ra8 {[%emt 0:01:54]} 28. Qa1 {
[%emt 0:06:34]} Ne6 {[%emt 0:00:44]} 29. Be5 {[%emt 0:00:16]} N6c5 {[%emt 0:00:
00]} 30. Rb1 {[%emt 0:01:34]} Na6 {[%emt 0:00:40]} 31. Nf4 {[%emt 0:02:22]} Nb4
{[%emt 0:00:16]} 32. Rbc1 {[%emt 0:01:18]} Nc5 {[%emt 0:02:07]} 33. Rb1 {
[%emt 0:03:38]} Ne6 {[%emt 0:01:42]} 34. Nh3 {[%emt 0:01:00]} h6 {[%emt 0:00:
00]} 35. Rd2 {[%emt 0:01:34]} Re8 {[%emt 0:00:23]} 36. Qb2 {[%emt 0:03:31]} g5
{[%emt 0:00:50]} 37. hxg5 {[%emt 0:01:08]} hxg5 {[%emt 0:00:02]} 38. f4 {
[%emt 0:03:29]} g4 {[%emt 0:00:14]} 39. Nf2 {[%emt 0:00:45]} Nf8 {[%emt 0:00:
00]} 40. Re1 {[%emt 0:00:55]} Ng6 {[%emt 0:00:12]} 41. Bc3 {[%emt 0:30:32]} Rh7
{[%emt 0:30:32]} 42. Bf6 {[%emt 0:01:25]} Qf8 {[%emt 0:00:32]} 43. Nh1 {
[%emt 0:01:41]} Na6 {[%emt 0:00:20]} 44. Bg5 {[%emt 0:01:23]} Nc5 {[%emt 0:00:
00]} 45. Qc3 {[%emt 0:01:55]} Rf7 {[%emt 0:00:31]} 46. Nf2 {[%emt 0:06:02]} b6
{[%emt 0:03:42]} 47. Nd3 {[%emt 0:02:44]} Ne6 {[%emt 0:00:13]} 48. b4 {[%emt 0:
00:00]} axb4 {[%emt 0:00:14]} 49. Qxb4 {[%emt 0:00:15]} Qxb4 {[%emt 0:00:30]}
50. Nxb4 {[%emt 0:01:03]} Ra8 {[%emt 0:00:52]} 51. Rc1 {[%emt 0:01:11]} Nxg5 {
[%emt 0:00:06]} 52. fxg5 {[%emt 0:00:03]} Ne5 {[%emt 0:00:01]} 53. Nxd5 {
[%emt 0:00:22]} cxd5 {[%emt 0:00:05]} 54. Bxd5 {[%emt 0:00:21]} Nf3+ {[%emt 0:
00:00]} 55. Bxf3 {[%emt 0:00:34]} gxf3 {[%emt 0:00:19]} 56. Rb1 {[%emt 0:01:44]
} Bc6 {[%emt 0:00:45]} 57. Rxb6 {[%emt 0:00:11]} Be4 {[%emt 0:00:04]} 58. Rb4 {
[%emt 0:00:11]} Rb7 {[%emt 0:00:20]} 59. Rxb7 {[%emt 0:01:40]} Bxb7 {[%emt 0:
00:00]} 60. Rd4 {[%emt 0:00:22]} Rc8 {[%emt 0:00:09]} 61. Rd2 {[%emt 0:01:58]}
Be4 {[%emt 0:00:13]} 62. Rd4 {[%emt 0:02:45]} Rc2 {[%emt 0:00:14]} 63. g4 {
[%emt 0:00:23]} Rg2+ {[%emt 0:00:17]} 64. Kf1 {[%emt 0:27:53]} Rxg4 {[%emt 0:
00:00]} 65. a5 {[%emt 0:00:06]} Rg2 {[%emt 0:00:07]} 66. a6 {[%emt 0:00:20]}
Ra2 {[%emt 0:00:32]} 67. Rd6 {[%emt 0:00:06]} Rxa6 {[%emt 0:01:12]} 68. Rxa6 {
[%emt 0:00:18]} Bd3+ {[%emt 0:00:06]} 69. Kf2 {[%emt 0:00:11]} Bxa6 {[%emt 0:
00:00]} 70. Kxf3 {[%emt 0:00:05]} Bb7+ {[%emt 0:00:03]} 71. Kf4 {[%emt 0:01:07]
} Be4 {[%emt 0:00:04]} 72. g6 {[%emt 0:00:09]} Kg7 {[%emt 0:00:21]} 73. Kg5 {
[%emt 0:00:09]} Bb1 {[%emt 0:00:49]} 74. Kh5 {[%emt 0:00:05]} Kf6 {[%emt 0:00:
00]} 75. Kh6 {[%emt 0:00:08]} Ba2 {[%emt 0:00:16]} 76. Kh5 {[%emt 0:00:35]} Be6
{[%emt 0:01:25]} 77. Kh6 {[%emt 0:00:40]} Ke5 {[%emt 0:01:37]} 78. Kh5 {
[%emt 0:00:51]} Ke4 {[%emt 0:00:07]} 79. Kg5 {[%emt 0:00:10]} Kxe3 {[%emt 0:00:
00]} 80. Kf6 {[%emt 0:00:16]} f4 {[%emt 0:02:09]} 81. Kxe6 {[%emt 0:01:56]} f3
{[%emt 0:00:01]} 82. g7 {[%emt 0:00:05]} f2 {[%emt 0:00:09]} 83. g8=Q {[%emt 0:
00:00]} f1=Q {[%emt 0:00:01]} 84. Qg5+ {[%emt 0:00:43]} Ke4 {[%emt 1:18:30]}
85. Qg2+ {[%emt 0:00:30]} 1/2-1/2

[Event "44th Chess Olympiad Open 2022"]
[Site "Chennai"]
[Date "2022.08.03"]
[Round "6.64"]
[White "Paiva, Donaldo"]
[Black "Jimma, Desalegn Fekadu"]
[Result "1-0"]
[WhiteElo "2191"]
[BlackElo "2112"]
[Annotator "TA"]
[PlyCount "83"]
[EventDate "2022.??.??"]
[TimeControl "60"]

{[%evp 14,83,4,-6,41,41,42,43,43,39,67,49,54,49,51,50,92,41,43,40,48,-86,-72,
-113,-109,-110,-104,-111,-79,-93,-48,-42,-34,-44,-24,-39,-35,-47,-47,-59,-36,
-38,0,0,227,235,197,152,729,729,719,395,369,152,722,468,4132,3517,2114,1629,
29986,29987,29987,699,4906,4898,4702,1691,29983,29984,29984,4132]} 1. d4 {
[%emt 0:00:02]} d5 {[%emt 0:00:08]} 2. c4 {[%emt 0:00:05]} e6 {[%emt 0:00:11]}
3. Nf3 {[%emt 0:00:04]} c6 {[%emt 0:00:13]} 4. Nc3 {[%emt 0:01:04]} Nf6 {
[%emt 0:00:10]} 5. e3 {[%emt 0:00:06]} Bd6 {[%emt 0:00:34]} 6. Qc2 {[%emt 0:00:
00]} Nbd7 {[%emt 0:00:17]} 7. b3 {[%emt 0:00:06]} O-O {[%emt 0:01:05]} 8. Be2 {
[%emt 0:00:05]} dxc4 {[%emt 0:04:17] D45: Semi-Slav: 5 e3.} (8... b6 $11 {
should be considered.}) 9. bxc4 $14 {[%emt 0:00:10]} c5 {[%emt 0:00:32]} 10.
O-O {[%emt 0:00:49]} a6 {[%emt 0:00:33] White is slightly better.} 11. a4 {
[%emt 0:03:40]} Qc7 {[%emt 0:01:32] [#]} 12. a5 $146 {[%emt 0:03:45]} ({
Predecessor:} 12. h3 b6 13. d5 Bb7 14. dxe6 fxe6 15. Ng5 Rae8 16. Bg4 Bh2+ 17.
Kh1 Be5 18. Bb2 {½-½ (41) Gurevich,D (2580)-Sevillano,E (2490) Chicago 1997})
12... Re8 {[%emt 0:01:19]} 13. d5 {[%emt 0:04:57]} exd5 {[%emt 0:00:43]} 14.
cxd5 {[%emt 0:00:05]} Ne5 {[%emt 0:00:24]} 15. h3 {[%emt 0:04:36]} (15. Nd2 $1
$16) 15... Bd7 {[%emt 0:01:29]} 16. Nd2 {[%emt 0:03:53] f4 is the strong
threat.} c4 {[%emt 0:10:06]} 17. e4 {[%emt 0:03:26]} (17. Rd1 $14) 17... Bb4
$17 {[%emt 0:05:40]} 18. Ba3 {[%emt 0:08:26]} Bxa5 {[%emt 0:03:56]} (18... Qxa5
19. Bxb4 Qxb4 20. Rfb1 $11) 19. d6 {[%emt 0:00:07]} Qc6 {[%emt 0:03:48]} 20. f4
{[%emt 0:15:50]} Nd3 {[%emt 0:03:31]} 21. e5 {[%emt 0:01:49]} Bxc3 {[%emt 0:00:
00]} 22. Qxc3 {[%emt 0:00:08]} Ne4 {[%emt 0:02:42]} 23. Nxe4 {[%emt 0:04:34]}
Qxe4 {[%emt 0:00:09]} 24. Bxd3 {[%emt 0:02:31]} cxd3 {[%emt 0:04:12]} 25. Rae1
{[%emt 0:01:23]} Qd5 {[%emt 0:00:16]} 26. Re3 {[%emt 0:00:12]} Bb5 {[%emt 0:00:
00] Threatens to win with ...Rac8.} 27. Rd1 {[%emt 0:00:37]} Rec8 {[%emt 0:00:
00]} (27... Rac8 $5 {[%cal Rc8c3]} 28. Qd2 Qd4 $17) 28. Qb2 {[%emt 0:00:12]} g6
$2 {[%emt 0:01:21] [#]} (28... Rc2 $2 29. Qxc2 Qxd6 30. exd6 $18) (28... Re8
$11 {and Black has nothing to worry.}) 29. f5 $1 $18 {[%emt 0:01:39] Strongly
threatening e6.} Re8 {[%emt 0:05:24] Prevents e6.} (29... gxf5 30. Rg3+ Kf8 31.
e6) (29... Rc2 $2 30. Qxc2 Qxd6 31. Qb2 $18) 30. h4 {[%emt 0:08:17]} f6 $2 {
[%emt 0:12:15]} (30... gxf5 {leads to mate.} 31. Rg3+ Kh8 32. e6+) (30... h5
$16) 31. e6 {[%emt 0:02:33]} Qxf5 {[%emt 0:00:59]} 32. Qb3 {[%emt 0:00:45]} ({
Not} 32. e7 Rac8 33. Rf3 Qe5 34. Qb3+ Bc4 $18) 32... Qf4 {[%emt 0:08:23]} 33.
Rdxd3 {[%emt 0:02:35]} (33. e7+ $18 {and the rest is easy.} Bc4 34. Qb6) 33...
Bxd3 $2 {[%emt 0:10:54] This costs Black the game.} (33... Bc4 $16 34. Qc3 (34.
Qxb7 Bxd3 35. Rxd3 Qe5 $11) 34... Bxe6) 34. Rxd3 {[%emt 0:01:01]} Qxh4 {
[%emt 0:05:06]} (34... Qe5 $142 35. e7+ Kg7) 35. e7+ {[%emt 0:00:25]} Kg7 {
[%emt 0:01:09]} 36. Qe6 {[%emt 0:00:07] Threatening mate with d7. Active
counter play!} Rec8 {[%emt 0:01:57]} 37. d7 {[%emt 0:00:53]} Rc2 {[%emt 0:00:
00]} 38. e8=N+ {[%emt 0:00:05]} (38. Qe3 $142 Qg4 39. Rd2 Rac8 40. e8=N+ Kg8
41. Nxf6+ Kh8 42. d8=Q+ Rxd8 43. Rxd8+ Kg7 44. Rg8+ Kxf6 45. Qe7+ Kf5 46. Rf8#)
38... Kh8 {[%emt 0:00:59] ( -> ...Qf2+)} 39. Qxf6+ {[%emt 0:00:08]} Qxf6 {
[%emt 0:00:16]} 40. Nxf6 {[%emt 0:00:06] Intending Re3 and mate.} b5 {[%emt 0:
00:00]} 41. Re3 {[%emt 0:30:53]} Kg7 {[%emt 0:30:18]} 42. Re8 {[%emt 0:00:10]
Weighted Error Value: White=0.52/Black=0.82} (42. Ne8+ $142 Kg8 43. Re7 b4 44.
Bxb4 Rc1+ 45. Kh2 Rf1 {[#]} 46. Nf6+ $1 Rxf6 47. Re8+ Kg7 48. Rxa8) 1-0

[Event "44th Chess Olympiad Open 2022"]
[Site "Chennai"]
[Date "2022.08.03"]
[Round "6.64"]
[White "Abera, Aydagnuhem Gezachew"]
[Black "Vasco Mateus Felizardo Viagei"]
[Result "1-0"]
[WhiteElo "2137"]
[BlackElo "1852"]
[Annotator "NA RC"]
[PlyCount "81"]
[EventDate "2022.??.??"]
[TimeControl "60"]

1. e4 {[%emt 0:00:08]} c5 {[%emt 0:00:13]} 2. Nf3 {[%emt 0:00:06]} d6 {[%emt 0:
00:00]} 3. d4 {[%emt 0:00:12]} cxd4 {[%emt 0:00:08]} 4. Nxd4 {[%emt 0:00:05]}
Nf6 {[%emt 0:00:07]} 5. Nc3 {[%emt 0:00:08]} a6 {[%emt 0:00:05]} 6. Be3 {
[%emt 0:00:22]} e6 {[%emt 0:01:34]} 7. f3 {[%emt 0:00:30]} d5 {[%emt 0:01:52]}
8. exd5 {[%emt 0:01:41]} Nxd5 {[%emt 0:00:54]} 9. Nxd5 {[%emt 0:00:19]} Qxd5 {
[%emt 0:00:14]} 10. Bd3 {[%emt 0:02:04]} Bc5 {[%emt 0:03:52]} 11. Qd2 {[%emt 0:
00:00]} O-O {[%emt 0:05:16]} 12. Nb3 {[%emt 0:08:44]} Bxe3 {[%emt 0:03:58]} 13.
Qxe3 {[%emt 0:00:07]} Nc6 {[%emt 0:00:10]} 14. O-O-O {[%emt 0:00:35]} Qh5 {
[%emt 0:01:35]} 15. h4 {[%emt 0:01:20]} Nb4 {[%emt 0:01:46]} 16. g4 {[%emt 0:
00:00]} Nd5 {[%emt 0:00:31]} 17. Qg5 {[%emt 0:13:51]} Qxg5+ {[%emt 0:02:05]}
18. hxg5 {[%emt 0:00:10]} g6 {[%emt 0:01:14]} 19. Be4 {[%emt 0:02:29]} Ne3 {
[%emt 0:00:58]} 20. Rd3 {[%emt 0:02:17]} Ng2 {[%emt 0:02:13]} 21. Rd2 {[%emt 0:
00:00]} Nf4 {[%emt 0:01:41]} 22. Rdh2 {[%emt 0:00:28]} h5 {[%emt 0:04:21]} 23.
gxh6 {[%emt 0:03:33]} f5 {[%emt 0:00:14]} 24. Bd3 {[%emt 0:02:43]} Bd7 {
[%emt 0:00:25]} 25. Rd2 {[%emt 0:06:21]} Bc6 {[%emt 0:00:44]} 26. Nd4 {[%emt 0:
00:00]} Bd5 {[%emt 0:00:04]} 27. Re1 {[%emt 0:01:21]} Kf7 {[%emt 0:05:25]} 28.
g5 {[%emt 0:04:42]} Rad8 {[%emt 0:00:22]} 29. Bf1 {[%emt 0:01:09]} b5 {[%emt 0:
00:00]} 30. a3 {[%emt 0:04:36]} Rfe8 {[%emt 0:07:43]} 31. Re5 {[%emt 0:01:40]}
Bc4 {[%emt 0:04:43]} 32. Bxc4 {[%emt 0:02:29]} bxc4 {[%emt 0:00:06]} 33. Ne2 {
[%emt 0:00:19]} Nh3 {[%emt 0:34:30]} 34. f4 {[%emt 0:03:15]} Nf2 {[%emt 0:00:
00]} 35. Rc5 {[%emt 0:04:03]} Rxd2 {[%emt 0:04:33]} 36. Rc7+ {[%emt 0:00:21]}
Kg8 {[%emt 0:00:04]} 37. Kxd2 {[%emt 0:00:16]} e5 {[%emt 0:01:57]} 38. fxe5 {
[%emt 0:04:49]} Ne4+ {[%emt 0:00:24]} 39. Kc1 {[%emt 0:03:24]} Nxg5 {[%emt 0:
00:00]} 40. Rg7+ {[%emt 0:00:50]} Kh8 {[%emt 0:00:15]} 41. Nf4 {[%emt 0:30:13]}
1-0